Cogmind - Beta 13 @@@ ROGUE MODE // 2024.04.26 @ 18:42:42 Player: Exceptionally Mediocre Result: Destroyed by O8-RRN(R) with Subdweller Laser Performance ------------- Evolutions (0) 0 Regions Visited (3) 600 Robots Destroyed (42) 210 Value Destroyed (921) 921 Prototype IDs (0) 0 Alien Tech Used (0) 0 Bonus (-42) -42 TOTAL SCORE: 1689 Bonus ------- Follower Combat Kills 7 Friendly Fire -49 Cogmind --------- Core Integrity 0/250 Matter 117/300 Energy 160/160 System Corruption 0% Temperature Warm (195) Movement Treading (160) Location -10/Subcaves Parts ------- > --- POWER (1) -------- Light Nuclear Core > --- PROPULSION (2) --- Light Treads Light Treads > --- UTILITY (2) ------ Large Storage Unit Makeshift Light Armor Plating > --- WEAPON (2) ------- Improved Light Cannon Improved Light Cannon > --- INVENTORY (15) --- Light Angular Momentum Engine Light Treads Light Treads Cooling System High-capacity Battery (250) Structural Scanner Signal Interpreter Battle Rifle Improved Light Cannon Battle Cannon Grenade Launcher Mining Laser Peak State ------------ > --- POWER ------------ Light Nuclear Core > --- PROPULSION ------- Light Treads Spiked Treads > --- UTILITY ---------- Large Storage Unit Makeshift Light Armor Plating > --- WEAPON ----------- Improved Light Cannon Improved Light Cannon > --- INVENTORY -------- Light Nuclear Core Light Angular Momentum Engine Light Treads Light Treads Light Treads Cooling System High-capacity Battery Structural Scanner Signal Interpreter Battle Rifle Improved Light Cannon Battle Cannon Grenade Launcher Mining Laser [Rating: 17] Favorites ----------- Power Ion Engine Engine Ion Engine Power Core Light Nuclear Core Propulsion Light Treads Treads Light Treads Utility Structural Scanner Device Structural Scanner Storage Large Storage Unit Protection Makeshift Light Armor Plating Weapon Improved Light Cannon Energy Gun EM Pulse Gun Ballistic Gun Light Assault Rifle Ballistic Cannon Improved Light Cannon Launcher Grenade Launcher Special Weapon Mining Laser Build | -11 -10 -10 -10 ------- Run | Yrd Mat Min Sub Slots Evolved . | . . . . Power . | . . . . Propulsion . | . . . . Utility . | . . . . Weapon . | . . . . Parts Attached 29 | 8 10 1 10 Power 4 | 1 . 1 2 Engine 2 | 1 . 1 . Core 2 | . . . 2 Reactor . | . . . . Propulsion 7 | 2 3 . 2 Treads 7 | 2 3 . 2 Leg . | . . . . Wheel . | . . . . Hover . | . . . . Flight . | . . . . Utility 5 | 2 2 . 1 Device 2 | 1 1 . . Storage 2 | 1 1 . . Processor . | . . . . Hackware . | . . . . Protection 1 | . . . 1 Artifact . | . . . . Weapon 13 | 3 5 . 5 Energy Gun 1 | 1 . . . Energy Cannon . | . . . . Ballistic Gun 2 | 2 . . . Ballistic Cannon 6 | . 3 . 3 Launcher 2 | . 2 . . Special Weapon 2 | . . . 2 Impact Weapon . | . . . . Slashing Weapon . | . . . . Piercing Weapon . | . . . . Special Melee Weapon . | . . . . Unidentified Prototypes . | . . . . Parts Lost 6 | . 2 . 4 Power 2 | . . . 2 Propulsion 2 | . 1 . 1 Utility 1 | . . . 1 Weapon 1 | . 1 . . Highest Loss Streak 3 | . 1 . 3 To Critical Strikes . | . . . . Average Slot Usage (%) 99 | . 98 100 99 Engine 8 | . 14 14 . Core 4 | . . . 13 Treads 27 | . 27 28 28 Device 13 | . 14 14 13 Storage 14 | . 14 14 14 Ballistic Gun 8 | . 19 . . Ballistic Cannon 11 | . 4 14 19 Launcher 6 | . 2 14 7 Naked Turns . | . . . . Heaviest Build 34 | 13 34 31 34 Greatest Support 40 | 40 40 40 40 Greatest Overweight (x) 1 | 1 . . . Average Overweight (x) . | . . . . Largest Inventory Capacity 15 | 8 15 15 15 Average Capacity 12 | 7 11 15 15 Most Carried 15 | 5 15 15 15 Average Carried 11 | 2 10 14 14 Final Capacity 15 | 8 15 15 15 Final Carried 15 | 5 15 15 12 Class Distribution -------------------- 100% | Mutant Dominant Class ---------------- Mutant | -10/Materials Mutant | -10/Mines Mutant | -10/Subcaves Resources | -11 -10 -10 -10 ----------- Run | Yrd Mat Min Sub Matter Collected 877 | 366 210 88 213 Remotely . | . . . . Salvage Created 1057 | 188 599 82 188 Parts 86 | 14 53 5 14 Haulers Intercepted 1 | . 1 . . Recyclers Shooed . | . . . . Parts Field Recycled . | . . . . Retrieved Matter . | . . . . Parts Self-Destructed 10 | . . . 10 Prevented . | . . . . Kills | -11 -10 -10 -10 ------- Run | Yrd Mat Min Sub Combat Hostiles Destroyed 29 | . 15 5 9 Guns 12 | . 12 . . Cannons 7 | . . 1 6 AOE 10 | . 3 4 3 Classes Destroyed 13 | 3 6 1 3 Worker 4 | 2 2 . . Builder 1 | . 1 . . Tunneler 3 | 3 . . . Hauler 1 | . 1 . . Recycler 1 | 1 . . . Mechanic 1 | . 1 . . Operator 1 | . 1 . . Swarmer 9 | . 3 3 3 Grunt 15 | . 12 2 1 Sentry 1 | . . . 1 Artisan 1 | . . . 1 Subdweller 4 | . . . 4 Zionite 1 | . . 1 . Best Kill Streak 8 | 3 8 3 2 Combat Bots Only 5 | . 5 3 2 Max Kills in Single Turn 2 | 1 2 2 2 Gunslinging . | . . . . Exploded 2 | . 2 2 2 Melee . | . . . . Uniques/NPCs Destroyed . | . . . . Combat | -11 -10 -10 -10 -------- Run | Yrd Mat Min Sub Hostile Shots Fired 148 | . 90 9 49 Missed 39 | . 25 2 12 Damage Taken 1581 | . 684 103 794 Core 253 | . 108 19 126 Absorbed by Shields . | . . . . Regen/Repaired (Parts) 40 | . 40 . . Core Remaining (%) 100 | 100 . . . Volleys Fired 161 | 43 66 8 44 Largest 2 | 2 2 1 2 Hottest 100 | 40 78 39 100 Shots Fired 293 | 86 128 8 71 Gun 206 | 86 120 . . Cannon 66 | . 4 2 60 Launcher 13 | . 4 6 3 Special 8 | . . . 8 Kinetic 272 | 86 124 2 60 Thermal 8 | . . . 8 Explosive 13 | . 4 6 3 Electromagnetic . | . . . . Robot Hit Streak 13 | 9 12 3 13 Robot Miss Streak 4 | 3 4 3 1 Penetration Max . | . . . . Secondary Targets 4 | . 4 . . Max Gunslinging Chain 1 | . 1 . . Shots Hit Robots 185 | 58 89 4 34 Core Hits 85 | 13 46 11 15 Critical Kills 1 | 1 . . . Critical Parts Destroyed 1 | 1 . . . Critical Strikes 4 | 2 . . 2 Destroy 2 | 2 . . . Blast 2 | . . . 2 Melee Attacks . | . . . . Impact . | . . . . Slashing . | . . . . Piercing . | . . . . Sneak Attacks . | . . . . Combat Hostiles . | . . . . Follow-up Attacks . | . . . . Damage Inflicted 2382 | 441 874 384 683 Guns 1185 | 441 744 . . Cannons 571 | . 20 24 527 Explosions 626 | . 110 360 156 Melee . | . . . . Ramming . | . . . . Kinetic 1756 | 441 764 24 527 Thermal . | . . . . Explosive 626 | . 110 360 156 Electromagnetic . | . . . . Impact . | . . . . Slashing . | . . . . Piercing . | . . . . Highest Corruption . | . . . . Average Corruption . | . . . . Corruption Purged . | . . . . Corruption Blocked . | . . . . Overload Shots . | . . . . Overflow Damage 17 | . . . 17 Projectiles . | . . . . Explosions 17 | . . . 17 Melee . | . . . . Knockbacks 6 | . . . 6 Impact . | . . . . Kinetic 6 | . . . 6 Secondary . | . . . . Self-Inflicted Damage 22 | . . 22 . Shots 1 | . . 1 . Rammed . | . . . . Targets Rammed . | . . . . Kicked . | . . . . Crushed . | . . . . Highest Temperature 293 | . 24 4 293 Average Temperature 70 | . 9 4 224 Received Heat Transfer 782 | . 276 27 479 Siege Activations . | . . . . Robots Corrupted . | . . . . Combat Hostiles . | . . . . Parts Fried . | . . . . Impact Corruptions . | . . . . Robots Melted . | . . . . Combat Hostiles . | . . . . Parts Melted . | . . . . Heat Transferred . | . . . . Parts Sabotaged . | . . . . Parts Stolen . | . . . . Parts Stripped . | . . . . Power Chain Reactions . | . . . . Alert | -11 -10 -10 -10 ------- Run | Yrd Mat Min Sub Peak Influence 234 | 30 234 231 . Initial 55 | . 19 55 . Average 111 | 10 113 165 . Maximum Alert Level 1 | . 1 1 . Low Security (%) 85 | 100 94 52 . Level 1 14 | . 5 47 . Level 2 . | . . . . Level 3 . | . . . . Level 4 . | . . . . Level 5 . | . . . . High Security . | . . . . Max Security . | . . . . Squads Dispatched 2 | . 2 . . Investigation 1 | . 1 . . Extermination . | . . . . Reinforcement 1 | . 1 . . Assault . | . . . . Garrison . | . . . . Intercept . | . . . . Searches Triggered . | . . . . Construction Impeded . | . . . . Haulers Reinforced . | . . . . Active Scanning Responses . | . . . . Cargo Convoy Interrupts . | . . . . Stealth | -11 -10 -10 -10 --------- Run | Yrd Mat Min Sub Distress Signals . | . . . . Communications Jammed . | . . . . Distress Signals . | . . . . Times Spotted 41 | . 25 5 11 Peak Tracking Total 5 | . 5 3 3 Tactical Retreats . | . . . . Traps | -11 -10 -10 -10 ------- Run | Yrd Mat Min Sub Traps Triggered 1 | . 1 . . Indirectly . | . . . . Trap Hack Attempts . | . . . . Triggered . | . . . . Disarmed . | . . . . Reprogrammed . | . . . . Reused . | . . . . Traps Extracted . | . . . . Installed . | . . . . Triggered . | . . . . Machines | -11 -10 -10 -10 ---------- Run | Yrd Mat Min Sub Machines Disabled 1 | . . 1 . Max in Single Turn 1 | . . 1 . Machines Repaired . | . . . . Machines Dismantled . | . . . . Machines Sabotaged . | . . . . Overloaded Fab Kills . | . . . . Hacking | -11 -10 -10 -10 --------- Run | Yrd Mat Min Sub Machines Accessed 7 | . 7 . . Terminals 6 | . 6 . . Fabricators . | . . . . Repair Stations 1 | . 1 . . Recycling Units . | . . . . Scanalyzers . | . . . . Garrison Access . | . . . . Total Hacks 25 | . 25 . . Successful 10 | . 10 . . Failed 15 | . 15 . . Catastrophic 2 | . 2 . . Database Lockouts . | . . . . Manual 19 | . 19 . . Terminals 22 | . 22 . . Fabricators . | . . . . Repair Stations 3 | . 3 . . Recycling Units . | . . . . Scanalyzers . | . . . . Garrison Access . | . . . . Terminal Hacks 1 | . 1 . . Branch Access Points 1 | . 1 . . Fabricator Hacks . | . . . . Repair Station Hacks 2 | . 2 . . Scan Component 1 | . 1 . . Repair 1 | . 1 . . Recycling Unit Hacks . | . . . . Scanalyzer . | . . . . Garrison Access Hacks . | . . . . Unauthorized Hacks 7 | . 7 . . Terminals 7 | . 7 . . Botnet 6 | . 6 . . Operators 1 | . 1 . . Fabricators . | . . . . Repair Stations . | . . . . Recycling Units . | . . . . Scanalyzers . | . . . . Garrison Access . | . . . . Data Cores Recovered . | . . . . Used . | . . . . Hacking Detections 6 | . 6 . . Full Trace Events 1 | . 1 . . Feedback Events . | . . . . Feedback Blocked . | . . . . Robot Schematics Acquired . | . . . . Robots Built . | . . . . Authchips . | . . . . Time . | . . . . Total Robot Build Rating . | . . . . Part Schematics Acquired . | . . . . Parts Built . | . . . . Authchips . | . . . . Time . | . . . . Total Part Build Rating . | . . . . Parts Repaired 1 | . 1 . . Time 26 | . 26 . . Parts Recycled . | . . . . Recycled Matter . | . . . . Retrieved Matter . | . . . . Retrieved Components . | . . . . Parts Scanalyzed . | . . . . Part Schematics Acquired . | . . . . Parts Damaged . | . . . . Bothacking | -11 -10 -10 -10 ------------ Run | Yrd Mat Min Sub Used RIF Installer . | . . . . Robots Hacked . | . . . . Non-combat . | . . . . Combat . | . . . . Robot Hacks Applied . | . . . . Relay Couplers Released . | . . . . Fabnet Peak Effective % . | . . . . Robots Rewired . | . . . . Allies Hacked . | . . . . Hacks Repelled . | . . . . Allies | -11 -10 -10 -10 -------- Run | Yrd Mat Min Sub Total Allies 2 | . . 2 . Largest Group 2 | . . 2 1 Highest-Rated Group 43 | . . 43 31 Highest-Rated Ally 31 | . . 31 31 Total Orders . | . . . . Ally Attacks 9 | . . . 9 Total Damage 104 | . . . 104 Kills 1 | . . . 1 Allies Corrupted . | . . . . Allies Melted . | . . . . Intel | -11 -10 -10 -10 ------- Run | Yrd Mat Min Sub Robot Analysis Total . | . . . . Derelict Logs Recovered 1 | . . 1 . Drone Launches . | . . . . Drone Recoveries . | . . . . Exploration | -11 -10 -10 -10 ------------- Run | Yrd Mat Min Sub Turns Passed 2828 | 251 1163 426 988 Spaces Moved 1428 | 80 579 255 514 Core 6 | 6 . . . Treads 1422 | 74 579 255 514 Legs . | . . . . Wheels . | . . . . Hover . | . . . . Flight . | . . . . Fastest Speed 50 | 50 160 160 160 Average Speed 159 | 154 160 160 160 Slowest Speed 160 | 160 160 160 160 Overloaded Moves . | . . . . Propulsion Burnouts . | . . . . Robots Hopped . | . . . . Cave-ins Triggered . | . . . . Exploration Rate (%) 41 | 6 93 39 27 Regions Visited 3 Branch Regions 2 Pre-discovered Areas . | . . . . Known Exits Taken 1 | . 1 . . Unknown Exits Taken 2 | 1 . 1 . Scrap Searched 5 | . . 1 4 Spaces Dug . | . . . . Terrain Destroyed 52 | . 6 25 21 Melee . | . . . . Projectile 4 | . . . 4 AOE 48 | . 6 25 17 Terrain Rammed . | . . . . Walls Destroyed . | . . . . Machines Disabled . | . . . . Actions | -11 -10 -10 -10 --------- Run | Yrd Mat Min Sub Total 1714 | 135 716 265 598 Wait 48 | . 34 . 14 Move 1425 | 79 578 254 514 Hop . | . . . . Pick Up 30 | 5 16 1 8 Fast Attach 12 | 7 5 . . Attach 5 | . 1 . 4 Detach 1 | . 1 . . Swap 12 | 1 4 1 6 Drop 20 | . 11 1 8 Fire 161 | 43 66 8 44 Melee . | . . . . Ram . | . . . . Kick . | . . . . Crush . | . . . . Escape Stasis . | . . . . Rewire . | . . . . Trap . | . . . . Miscellaneous . | . . . . Route ------- -11/Scrapyard -10/Materials (discovered 5 exits: [*Mat x3] / *Min / [Sub]) -10/Mines (discovered 2 exits: [*Mat] / [*Sub]) -10/Subcaves History --------- Turn | Location | Event 14 | -11/Scrapyard | Discovered new exit (range 15) 252 | -11/Scrapyard | Entered Materials 300 | -10/Materials | Build established: Mutant 315 | -10/Materials | Discovered new exit (range 16) 550 | -10/Materials | Discovered new exit (range 8) 606 | -10/Materials | Discovered new exit (range 8) 858 | -10/Materials | Discovered new exit (range 8) 926 | -10/Materials | Identified exit to Mines 1157 | -10/Materials | Discovered new exit (range 13) 1403 | -10/Materials | Repaired Grenade Launcher 1415 | -10/Materials | Entered Mines 1574 | -10/Mines | Discovered new exit (range 4) 1615 | -10/Mines | Core integrity fell below 50% 1677 | -10/Mines | Discovered new exit (range 9) 1841 | -10/Mines | Entered Subcaves 1841 | -10/Subcaves | Accompanied by 1 ally 2454 | -10/Subcaves | Shifting Twisted Machinery released Scrap Shield 2532 | -10/Subcaves | Ambushed by angry Subdweller bent on revenge 2660 | -10/Subcaves | A swath of the cavern ceiling suddenly collapsed 2790 | -10/Subcaves | Ambushed by Subdweller buried in earth 2790 | -10/Subcaves | Ambushed by Subdweller buried in earth 2811 | -10/Subcaves | Ambushed by Subdweller buried in earth 2815 | -10/Subcaves | Core integrity fell below 20% 2829 | -10/Subcaves | Destroyed by O8-RRN(R) with Subdweller Laser Last Messages --------------- A swath of the cavern ceiling suddenly collapses. 02776_ R3-TDD(R) knocked back. 02776_ R3-TDD(R) destroyed. 02785_ EE-3X2(R) knocked back. 02787_ Structural Scanner destroyed. 02788_ EE-3X2(R) knocked back. 02791_ I8-V0F(R): "ARGHSUB!" 02791_ U6-9YJ(R): "ARGHSUB!" 02794_ Lgt. Nuclear Core destroyed. 02799_ Acquired 2 matter. 02804_ U6-9YJ(R) affixes Scrap Shield Fragment to Scrap Shield. 02805_ Critical hit (Meltdown: +290). 02808_ U6-9YJ(R) Sub. Power Source blasted off. 02811_ U6-9YJ(R) destroyed. 02812_ O8-RRN(R): "ARGHSUB!" 02817_ I8-V0F(R) knocked back. 02821_ Spk. Treads destroyed. 02827_ I8-V0F(R) destroyed. Map ----- +----------------------------------------------------+ | ?????????????????????????????????????????????????? | | ?????????????????????????????????????????????????? | | ?????????????????????????????????????????????????? | | ?????????????????????????????????????????????????? | | ?????????????????????????????????????????????????? | | ?????????????????????????????????????????????????? | | ?????????????????????????????????????????????????? | | ?????????????????????????????????????????????????? | | ?????????????????????????????????????????????????? | | ?????????????????????????????????????????????????? | | ?????????????????????????????????????????????????? | | ?????????????????????????????????????????????????? | | ?????????????????????????????????????????????????? | | ?????????????????????????????????????????????????? | | ????????????????????????????""#??????????????????? | | ????????????????????????? """##??????????????????? | | ????????????????????????#""""##??????????????????? | | ???????????????????????? """"##??????????????????? | | ????????????????????????"" #???????????????????? | | ???????????????????????"" %##???????????????????? | | ????????????????????#####R ###??????????????????? | | ???????????????????## % #??????????????????? | | ???????????????????# % #??????????????????? | | ???????????????????# *%[ #??????????????????? | | ????????????????????# R #??????????????????? | | ???????????????????## % @! #??????????????????? | | ??????????????????###;% &% #??????????????????? | | ??????????????????### % #?????????????????? | | ??????????????????## ; ##?????????????????? | | ??????????????????### #;##% #??????????????????? | | ??????????????????#####; "## #??????????????????? | | ????????????#####?#####;;#"### ??????????????????? | | ????????????#############""#####?????????????????? | | ???????? ###"#""""#"##???????????????????? | | ??????? #### "#""""""#"####???????????????????? | | ?????# ##""## # #""#""#####""???????????????????? | | ?????## #"[ "# ######## "###?????????????????????? | | ?????## #"=["# ######### ###?????????????????????? | | ?????## ##"" # ####"#"# ##?????????????????????? | | ????### ####] #######"###?????????????????????? | | ????#### ## ####"" ####?????????????????????? | | ????## [####""" ##"###??????????????????????? | | ????### # #"""#"####???????????????????????? | | ######## [ ######"####???????????????????????? | | ####### # ]#####"####????????????????????????? | | # # # ###?###" ##????????????????????????? | | ## ###### ###????????????????????????? | | ## # # ## # ### ###????????????????????????? | | ## # #### # ## ### ##?????????????????????????? | | ##### ######?????????????????????????? | +----------------------------------------------------+ Best States ------------- Heat Dissipation 25 Energy Generation 14 Energy Capacity 250 Matter Stores 300 Matter Capacity 300 Sight Range 16 Terrain Scan Range 16 Terrain Scan Density 10 Armor Coverage 100 Evasion (%) 40 Recoil Reduction 2 Item Schematics ----------------- None Robot Schematics ------------------ None Fabricated ------------ Nothing Alien Tech Used ----------------- None Achievements -------------- None Challenges ------------ None Game ------ Seed MicroHardenedTrap Manual? 0 Play Time 00:21:30 Cumulative 118.9 hours Start 2024.04.26 @ 18:04:30 End 2024.04.26 @ 18:42:42 Sessions 1 Manual Loads 0 Difficulty Rogue Special Mode None Game No. 136 Rogue 136 Adventurer 0 Explorer 0 Win Type - Total 0 Types 0/0/0/0/0/0/0/0/0 Lore% 29 Gallery% 56 Achievement% 41 Wizard Run 0 Options --------- Layout 1 ASCII 0 Keyboard 1 Movement Vi Keybinds 0 Fullscreen 1 Font 24/Smallcaps Map View 50x35 Zoom Use 0% Tactical HUD 1 Map Filters NONE Filters NONE Steam 1 RUN: e5423640-e7ba-49bd-9ada-27de55a82169